[Event "FIDE CB Open 2022"]
[Site "Ceske Budejovice"]
[Date "2022.07.01"]
[Round "1.1"]
[White "Roshka, Yevgeniy"]
[Black "Vrchotka, Josef"]
[Result "1-0"]
[ECO "E60"]
[WhiteElo "2497"]
[BlackElo "1959"]
[Annotator "TA"]
[PlyCount "125"]
[EventDate "2022.07.01"]
[EventType "swiss"]
[EventCountry "CZE"]
[SourceTitle "playchess.com"]
[Source "ChessBase"]
[SourceQuality "1"]
[TimeControl "40/5400+30:1800+30"]

{[%evp 9,125,6,10,0,11,0,9,0,0,-83,-84,-71,-72,-83,-93,-74,88,90,83,71,113,-14,-7,0,0,0,0,0,0,0,0,-22,-22,-29,-8,-62,0,0,0,-116,0,-8,-18,-22,0,0,0,-116,-27,-57,-20,-20,0,-58,0,-48,0,-50,0,-47,-46,-42,0,-46,-18,-42,-18,-32,-28,-27,-27,-55,0,0,0,-22,0,0,0,0,0,0,0,0,0,-8,29,26,209,256,270,262,348,268,256,251,235,212,1684,1684,1179,780,5547,9166,29962,29962,2115,125,29970,29970,29972,29965,29962,29965,9266,9266,29952,5110]} 1. d4 {[%emt 0:00:04]} Nf6 {[%emt 0:00:11]} 2. c4 {[%emt 0:00:06]} g6 {[%emt 0:00:13]} 3. h4 {[%emt 0:00:04]} c5 {[%emt 0:01:21]} 4. d5 {[%emt 0:00:02]} e6 {[%emt 0:00:41]} 5. Nc3 {[%emt 0:00:22]} exd5 {[%emt 0:00:17] [#]} 6. Nxd5 $146 {[%emt 0:00:44] E60: King's Indian: Unusual lines and Fianchetto Variation without Nc3.} ({Predecessor:} 6. cxd5 d6 7. e4 a6 8. a4 Bg7 9. Nf3 Bg4 10. Be2 Nbd7 11. Bf4 Qe7 12. Nd2 Bxe2 13. Qxe2 {0-1 (36) Maghsoodloo,P (2699)-Bachmann,A (2588) Chess.com INT 2022}) 6... Nxd5 {[%emt 0:01:12]} 7. Qxd5 {[%emt 0:00:07] Strongly threatening Qe5+.} Nc6 {[%emt 0:10:35] Against Qe5+} 8. Nf3 {[%emt 0:15:32] The position is equal.} d6 {[%emt 0:04:40]} 9. Ng5 {[%emt 0:03:13]} (9. Bg5 $11 f6 10. Bf4) 9... Qe7 $1 $17 {[%emt 0:03:10] ...h6 is the strong threat.} 10. Bd2 {[%emt 0:09:36]} Bg7 {[%emt 0:01:26]} 11. h5 {[%emt 0:04:56]} Bf5 {[%emt 0:11:46] Inhibits Ne4.} 12. g4 {[%emt 0:07:49][%cal Bg2g4,Bg4f5][%mdl 32]} Bxb2 $2 {[%emt 0:03:37] [#]} (12... Bxg4 $17 {stays on course. Threatens to win with ...Bf5.} 13. O-O-O Bxh5) 13. gxf5 $1 $16 {[%emt 0:00:14]} Bxa1 {[%emt 0:00:27]} 14. hxg6 {[%emt 0:00:12] White is more active.} fxg6 {[%emt 0:11:12]} 15. Rxh7 {[%emt 0:07:02]} Rxh7 $11 {[%emt 0:14:49]} 16. Qg8+ {[%emt 0:00:43]} Kd7 {[%emt 0:06:50]} 17. Qxa8 {[%emt 0:00:05] Chess con chili.} Kc7 {[%emt 0:00:19]} 18. Nxh7 {[%emt 0:05:43]} Qxh7 {[%emt 0:00:02]} 19. Bg2 {[%emt 0:01:31]} gxf5 {[%emt 0:02:16][%cal Of5f4]} 20. Qe8 {[%emt 0:07:38]} Qd7 {[%emt 0:01:26]} 21. Qh5 {[%emt 0:01:10]} Qg7 {[%emt 0:03:50]} 22. Qf3 {[%emt 0:00:03]} ({White should play} 22. Kf1 $1 $11) 22... Qb2 {[%emt 0:01:19]} (22... Bb2 $15 23. Kf1 Qd4) 23. Qxf5 {[%emt 0:00:38]} Qxa2 {[%emt 0:00:50][%cal Oa1f6]} 24. Bd5 {[%emt 0:02:39]} (24. e3 $11) 24... Be5 {[%emt 0:02:35]} (24... Ne7 $17 25. Qh7 Bg7 $1 {[%mdl 512]}) 25. f4 {[%emt 0:01:30]} Qa1+ {[%emt 0:02:14]} 26. Kf2 {[%emt 0:00:01]} Bd4+ {[%emt 0:01:11]} 27. e3 {[%emt 0:00:29]} Qb2 {[%emt 0:00:21]} 28. Qd3 {[%emt 0:00:11]} (28. Qf7+ $11 Kb6 29. Ke1) 28... Bf6 {[%emt 0:00:26]} (28... Nb4 $1 $17 {[%cal Rb4d3]} 29. Qh7+ Bg7) 29. Kf3 {[%emt 0:00:17]} Qa1 {[%emt 0:01:37]} 30. Ke2 {[%emt 0:04:02]} Qb2 {[%emt 0:00:08]} 31. Kf3 {[%emt 0:02:11]} Qa1 {[%emt 0:00:19]} (31... Ne7 $15) 32. Kg2 {[%emt 0:00:01]} (32. Ke2 $11) 32... Qb2 {[%emt 0:00:31]} (32... Ne7 $15) 33. Kh3 {[%emt 0:00:01]} (33. Kf3 $11) 33... Bg7 {[%emt 0:01:33]} ({Better is} 33... Ne7 $15) 34. Bf3 {[%emt 0:01:41]} (34. Bxc6 $11 {should be considered.} Kxc6 35. Ba5) 34... Qf6 $15 {[%emt 0:00:49]} 35. Kg3 {[%emt 0:01:02]} Ne7 {[%emt 0:00:29]} 36. Be4 {[%emt 0:01:01]} (36. Qe4 $11 {deserves consideration.} Qg6+ 37. Qxg6 Nxg6 38. Kg4) 36... Qb2 {[%emt 0:00:39]} 37. Kh3 {[%emt 0:02:51]} Qa1 {[%emt 0:00:28]} 38. Bf3 {[%emt 0:01:29]} Qf6 {[%emt 0:00:37]} 39. Qe4 {[%emt 0:00:42]} Nc6 {[%emt 0:00:27]} ({Don't do} 39... d5 40. cxd5 Nf5 41. Ba5+ b6 42. Be1 $16) 40. Be1 {[%emt 0:00:37]} Kd7 {[%emt 0:00:50]} (40... a6 $15) 41. Bh4 $11 {[%emt 0:30:13] This bishop pair is nice.} Qf8 {[%emt 0:31:57]} 42. Qh7 {[%emt 0:03:30]} Qh8 {[%emt 0:00:58]} 43. Qf5+ {[%emt 0:01:27]} Kc7 {[%emt 0:00:20]} 44. Qf7+ {[%emt 0:02:32]} Kb6 $1 {[%emt 0:00:14]} 45. Qe6 {[%emt 0:01:54]} Bf8 {[%emt 0:02:36] aiming for ...Be7.} 46. Qe8 {[%emt 0:06:30]} Bg7 {[%emt 0:03:34]} 47. Qg6 {[%emt 0:02:54]} Bf8 {[%emt 0:01:58]} 48. Kg4 {[%emt 0:01:30] Black must now prevent Bf6.} a5 $2 {[%emt 0:01:39] White now steadily converts the win.} (48... Qg7 $11 {and Black has nothing to worry.} 49. Qxg7 Bxg7) 49. Bxc6 $18 {[%emt 0:01:46]} bxc6 {[%emt 0:00:00][%mdl 4096] Endgame KQB-KQB} 50. Bd8+ {[%emt 0:00:00]} Ka6 {[%emt 0:00:00]} 51. Qe8 {[%emt 0:00:00]} ({Not} 51. Qb1 Qg7+ 52. Kf3 Qb7 $14) 51... Qg7+ {[%emt 0:00:00]} 52. Kf3 {[%emt 0:00:00]} Kb7 {[%emt 0:00:00]} 53. Bxa5 {[%emt 0:00:00]} Qe7 $2 {[%emt 0:00:00]} (53... d5 54. cxd5 cxd5 55. Qb5+ Kc8 56. Qc6+ Kb8 57. Qb6+ Qb7 58. Qd8+ Qc8 59. Qxd5 Qb7 60. Qxb7+ Kxb7) 54. Qxe7+ $1 {[%emt 0:00:00]} Bxe7 {[%emt 0:00:00] KB-KB} 55. Ke4 {[%emt 0:00:00]} Kc8 {[%emt 0:00:00]} 56. Kf5 $1 {[%emt 0:00:00] Intending Ke6 and mate.} Kd7 {[%emt 0:00:00]} 57. Kg6 {[%emt 0:00:00]} d5 {[%emt 0:00:00] [#]} 58. f5 $2 {[%emt 0:00:00]} (58. Bc3 $1 $18 {is the precise move to win. Threatening mate with f5.} Bf8 59. f5) 58... Kd6 $2 {[%emt 0:00:00][%mdl 8192]} (58... d4 $16) 59. Bc3 {[%emt 0:00:00]} Bf8 {[%emt 0:00:00]} 60. Kf7 {[%emt 0:00:00]} Bh6 {[%emt 0:00:00]} 61. f6 {[%emt 0:00:00]} Bxe3 {[%emt 0:00:00]} 62. Kg8 {[%emt 0:00:00]} Ke6 {[%emt 0:00:00]} 63. f7 {[%emt 0:00:00] Weighted Error Value: White=0.33/Black=0.69} (63. cxd5+ $142 cxd5 64. f7 d4 {[#]} 65. f8=Q $1 Ke5 66. Qf3 Bg5 67. Be1 d3 68. Bc3+ Kd6 69. Qxd3+ Kc6 70. Qg6+ Kd5 71. Qxg5+ Ke4 72. Qxc5) 1-0

[Event "FIDE CB Open 2022"]
[Site "Ceske Budejovice"]
[Date "2022.07.01"]
[Round "1.2"]
[White "Chval, Zdenek"]
[Black "Havelka, Josef"]
[Result "1-0"]
[ECO "B88"]
[WhiteElo "2063"]
[BlackElo "2396"]
[Annotator "TA"]
[PlyCount "63"]
[EventDate "2022.07.01"]
[EventType "swiss"]
[EventCountry "CZE"]
[SourceTitle "playchess.com"]
[Source "ChessBase"]
[SourceQuality "1"]
[TimeControl "40/5400+30:1800+30"]

{[%evp 18,63,4,0,6,6,6,18,37,11,7,0,16,-27,-25,-38,0,0,0,0,0,0,22,12,18,0,0,-125,-125,-124,-110,-120,-110,-116,59,66,59,72,67,57,70,53,66,70,711,700,659,570]} 1. e4 {[%emt 0:00:05]} c5 {[%emt 0:00:27]} 2. Nf3 {[%emt 0:00:05]} Nc6 {[%emt 0:00:21]} 3. d4 {[%emt 0:00:05]} cxd4 {[%emt 0:00:05]} 4. Nxd4 {[%emt 0:00:03]} Nf6 {[%emt 0:00:12]} 5. Nc3 {[%emt 0:00:04]} d6 {[%emt 0:00:10]} 6. Bc4 {[%emt 0:04:38]} e6 {[%emt 0:00:29]} 7. O-O {[%emt 0:01:10]} Be7 {[%emt 0:04:26]} 8. Be3 {[%emt 0:03:03]} O-O {[%emt 0:07:26]} 9. Kh1 {[%emt 0:04:30]} Bd7 {[%emt 0:14:37]} 10. f4 {[%emt 0:07:09]} Nxd4 {[%emt 0:03:35] B88: Sicilian: Sozin Attack.} 11. Bxd4 {[%emt 0:21:13]} Bc6 {[%emt 0:03:38]} 12. Qe2 {[%emt 0:03:10]} d5 {[%emt 0:27:27] [#] The position is equal.} 13. exd5 $146 {[%emt 0:00:09]} (13. Rad1 $5) ({Predecessor:} 13. Rad1 Re8 14. f5 Qc8 15. e5 exf5 16. exf6 Bxf6 17. Qh5 Bxd4 18. Nxd5 g6 19. Qf3 {0-1 (48) Bogdanov,E (2348)-Pugachov,I (2025) Lvov 2017}) 13... exd5 {[%emt 0:00:15] [#]} 14. Rad1 $1 {[%emt 0:09:39]} Re8 {[%emt 0:09:58]} 15. Qf2 {[%emt 0:03:37]} dxc4 {[%emt 0:09:03]} 16. Bxf6 {[%emt 0:00:22]} Bxf6 {[%emt 0:00:05][%cal Be7f6,Bf6d4,Bd4e3][%mdl 32]} 17. Rxd8 {[%emt 0:00:07]} Raxd8 {[%emt 0:00:04]} 18. Re1 {[%emt 0:07:46]} (18. Qxa7 $2 Rd2 19. Qg1 Bd4 $19) 18... Rxe1+ {[%emt 0:04:04]} 19. Qxe1 {[%emt 0:00:02]} Bd4 {[%emt 0:03:21]} 20. h3 {[%emt 0:07:27]} h5 {[%emt 0:04:55]} 21. Qe2 {[%emt 0:04:52]} h4 {[%emt 0:01:50]} 22. Qxc4 {[%emt 0:03:33]} (22. Qe1 $11) 22... Be3 $17 {[%emt 0:02:03]} 23. Ne2 {[%emt 0:06:31]} Rd2 {[%emt 0:01:11][%mdl 1024] And now ...g6 would win. Black has strong compensation.} 24. b4 {[%emt 0:02:06] [#]} g6 $1 {[%emt 0:00:54] aiming for ...Bf2.} 25. b5 {[%emt 0:01:40] [#]} Bd5 {[%emt 0:00:46] A strong pair of Bishops.} (25... Bd7 $1 $17 {[%cal Rd7e6] Hoping for ...Be6.} 26. Nc3 Bf5) 26. Qc8+ $14 {[%emt 0:01:07]} Kh7 {[%emt 0:00:05]} 27. Qg4 {[%emt 0:00:40]} Kg7 {[%emt 0:01:18]} 28. f5 $1 {[%emt 0:00:59] Threatens to win with c4.} Rxc2 {[%emt 0:01:04]} 29. fxg6 {[%emt 0:01:38]} f5 {[%emt 0:00:39]} 30. Qh5 {[%emt 0:04:45] Strongly threatening Qh7+.} (30. Qxf5 Rxe2 31. Qd7+ (31. Qxd5 {is a self mate.} Re1+ 32. Kh2 Bg1+ 33. Kh1 Bf2+ 34. Kh2 Bg3#) 31... Kh6 32. Qh7+ (32. Qxd5 {leads to mate.} Re1+ 33. Kh2 Bg1+ 34. Kh1 Bf2+ 35. Kh2 Bg3#) 32... Kg5 33. Qe7+ Kf5 34. Qd7+ Ke5 35. Qg7+ Kd6 36. Qf8+ Kd7 37. Qg7+ Kd8 38. Qf8+ (38. Qf6+ $2 Kc7 $19) 38... Kc7 39. Qe7+ Kb6 40. Qd8+ (40. Qd6+ $2 Bc6 $19) 40... Kc5 41. Qe7+ Kxb5 42. Qd7+ Kc5 43. Qe7+ Kb5 44. Qd7+ Kc4 45. Qa4+ Kc5 46. Qa3+ Kc6 47. Qc3+ Bc5 48. Qf6+ Kb5 49. a4+ Kc4 50. Qxh4+ Bd4 $19) 30... Rd2 $2 {[%emt 0:00:12][%mdl 8192]} (30... Bf2 $14) 31. Qh7+ $18 {[%emt 0:01:19]} Kf6 {[%emt 0:00:05]} 32. Qxh4+ {[%emt 0:00:13] Weighted Error Value: White=0.15 (very precise) /Black=0.26 (precise)} 1-0

[Event "FIDE CB Open 2022"]
[Site "Ceske Budejovice"]
[Date "2022.07.01"]
[Round "1.3"]
[White "Velicka, Petr"]
[Black "Nejdl, Eduard"]
[Result "1-0"]
[ECO "B04"]
[WhiteElo "2384"]
[BlackElo "1951"]
[Annotator "TA"]
[PlyCount "50"]
[EventDate "2022.07.01"]
[EventType "swiss"]
[EventCountry "CZE"]
[SourceTitle "playchess.com"]
[Source "ChessBase"]
[SourceQuality "1"]
[TimeControl "40/5400+30:1800+30"]

{[%evp 13,50,43,47,53,48,54,61,66,56,18,65,18,58,57,68,36,43,8,46,41,39,44,52,48,72,70,80,68,80,68,73,72,281,223,225,212,325,337,385]} 1. e4 {[%emt 0:00:22]} Nf6 {[%emt 0:24:06]} 2. e5 {[%emt 0:00:10]} Nd5 {[%emt 0:00:03]} 3. d4 {[%emt 0:00:08]} d6 {[%emt 0:00:05]} 4. Nf3 {[%emt 0:00:07]} dxe5 {[%emt 0:00:19]} 5. Nxe5 {[%emt 0:00:07]} c6 {[%emt 0:00:06]} 6. Bc4 {[%emt 0:05:17]} g6 {[%emt 0:01:53]} 7. O-O {[%emt 0:08:33]} Bg7 {[%emt 0:01:38]} 8. Re1 {[%emt 0:07:37] B04: Alekhine's Defence: 4 Nf3.} Nd7 {[%emt 0:04:17]} 9. Nf3 {[%emt 0:01:44]} N7f6 {[%emt 0:13:26]} 10. Bb3 {[%emt 0:02:02] White is slightly better.} O-O {[%emt 0:02:58]} 11. Nbd2 {[%emt 0:02:34][%cal Bb1d2,Bd2c4,Bc4e5][%mdl 32]} a5 {[%emt 0:02:38]} 12. a4 {[%emt 0:00:20]} (12. c3 $14 {is superior.}) 12... Bf5 {[%emt 0:07:33]} 13. Nc4 {[%emt 0:04:23]} Qc7 {[%emt 0:08:03]} 14. Nce5 {[%emt 0:04:56]} Rad8 {[%emt 0:01:45] [#]} 15. Nd3 $146 {[%emt 0:03:18]} ({Predecessor:} 15. Qe2 c5 16. h3 Bc8 17. Bd2 b6 18. c3 e6 19. Rac1 Bb7 20. Bg5 h6 21. Bd2 {1-0 (58) Ernst,T (2321)-Laveryd,P (2368) Sweden 2019}) 15... Bxd3 {[%emt 0:01:21]} (15... b6 {is more complex.} 16. h3 c5 17. Nde5 cxd4 18. Nxd4 Ne4) 16. Qxd3 {[%emt 0:00:29]} Rfe8 {[%emt 0:04:10]} 17. c3 {[%emt 0:05:21]} Nd7 {[%emt 0:04:44][%cal Bf6d7,Bd7f8,Bf8e6,Be6f4][%mdl 32]} 18. Bg5 {[%emt 0:01:50][%cal Bc1g5,Bg5h4,Bh4g3][%mdl 32]} Nf8 {[%emt 0:03:13]} 19. Bh4 {[%emt 0:05:39]} Ne6 {[%emt 0:02:29]} 20. Rad1 {[%emt 0:02:54]} Qc8 {[%emt 0:01:58]} 21. Bg3 {[%emt 0:01:38]} Nef4 {[%emt 0:01:59]} 22. Qe4 {[%emt 0:01:16]} Qf5 {[%emt 0:00:48] [#] This costs Black the game.} (22... Nh5 $16) 23. c4 {[%emt 0:02:37]} Qxe4 {[%emt 0:03:14]} 24. Rxe4 {[%emt 0:00:12]} Nf6 {[%emt 0:02:54]} (24... Nh5 {was necessary.}) 25. Rxf4 $18 {[%emt 0:00:29]} e5 {[%emt 0:01:04] Weighted Error Value: White=0.14 (very precise) /Black=0.32} 1-0

[Event "FIDE CB Open 2022"]
[Site "Ceske Budejovice"]
[Date "2022.07.01"]
[Round "1.4"]
[White "Lang, Simon"]
[Black "Neuman, Petr"]
[Result "0-1"]
[ECO "B60"]
[WhiteElo "1942"]
[BlackElo "2378"]
[Annotator "TA"]
[PlyCount "112"]
[EventDate "2022.07.01"]
[EventType "swiss"]
[EventCountry "CZE"]
[SourceTitle "playchess.com"]
[Source "ChessBase"]
[SourceQuality "1"]
[TimeControl "40/5400+30:1800+30"]

{[%evp 12,112,40,29,44,-8,-12,-9,-6,0,-13,-28,-5,-40,-11,-58,2,-219,-188,-221,-197,-195,0,0,0,0,0,0,6,-15,-9,-26,-31,-572,-5,-104,-32,-24,-28,-26,-32,-33,-26,-284,-273,-262,-185,-187,-147,-153,-129,-154,-110,-189,-196,-221,-217,-246,-248,-274,-258,-270,-166,-262,-275,-315,-307,-306,-298,-460,-430,-440,-427,-440,-426,-418,-394,-628,-596,-713,-655,-809,-775,-735,-695,-1191,-1109,-1568,-1103,-2552,-1995,-1714,-1105,-1329,-1266,-29980,-29981,-29988,-29973,-29975,-29964,-29990,-29991]} 1. e4 {[%emt 0:00:04]} c5 {[%emt 0:00:00]} 2. Nf3 {[%emt 0:00:30]} d6 {[%emt 0:00:00]} 3. d4 {[%emt 0:00:56]} cxd4 {[%emt 0:00:00]} 4. Nxd4 {[%emt 0:00:26]} Nf6 {[%emt 0:00:00]} 5. Nc3 {[%emt 0:00:53]} Nc6 {[%emt 0:00:00]} 6. Bg5 {[%emt 0:00:48]} Bd7 {[%emt 0:00:00]} 7. f4 {[%emt 0:01:20]} h6 {[%emt 0:02:57] B60: Sicilian: Richter-Rauzer: Unusual Black 6th moves and 6...Bd7 without 7 Qd2.} 8. Bh4 {[%emt 0:03:51]} (8. Bxf6 $14 gxf6 9. Qd3) 8... g5 $11 {[%emt 0:14:16]} 9. fxg5 {[%emt 0:02:54]} hxg5 {[%emt 0:00:18] The position is equal.} 10. Bxg5 {[%emt 0:00:33]} Bg7 {[%emt 0:00:11] [#]} 11. Nf5 $146 {[%emt 0:06:34]} ({Predecessor:} 11. Qd2 Rc8 12. Nf3 Qa5 13. Bd3 Ng4 14. Nd5 e6 15. Ne3 Nge5 16. Nxe5 Qxd2+ 17. Kxd2 Nxe5 {0-1 (58) Demidowicz,M (1982)-Klim,K (2108) Barlinek 2007}) 11... Bxf5 {[%emt 0:03:31]} 12. exf5 {[%emt 0:00:17]} Qa5 {[%emt 0:06:47] [#] White must now prevent ...Ne4.} 13. Qf3 {[%emt 0:05:18] Inhibits Ne4.} (13. Bb5 $11) 13... Nd4 {[%emt 0:18:44]} (13... Qe5+ $15 14. Qe3 Qxf5) 14. Qxb7 $2 {[%emt 0:15:12]} (14. Qd3 $1 $11 {and White is okay.} Nd5 15. Kd1) 14... O-O $19 {[%emt 0:00:32]} 15. Bxf6 {[%emt 0:01:57]} (15. O-O-O $2 Rab8 16. Bxf6 (16. Qxe7 $2 Nd5 $19) 16... Bh6+ 17. Kb1 exf6 $19) 15... Bxf6 {[%emt 0:01:00]} 16. Qe4 {[%emt 0:05:18] [#]} Nxf5 $2 {[%emt 0:05:21]} ({Better is} 16... Rab8 $1 $19 {[%cal Rb8b2]} 17. Kf2 (17. Qg4+ $2 Bg7 $19) 17... Rfc8) 17. Bd3 $11 {[%emt 0:07:33]} Bxc3+ {[%emt 0:03:27]} 18. bxc3 {[%emt 0:00:21]} Qxc3+ {[%emt 0:00:06]} 19. Kf2 {[%emt 0:00:47]} Qc5+ {[%emt 0:00:27]} 20. Ke1 {[%emt 0:01:21]} e6 {[%emt 0:00:27]} 21. Rf1 {[%emt 0:06:53]} Rab8 {[%emt 0:02:14] And now ...Rb4 would win.} 22. Rf4 $2 {[%emt 0:09:12][%mdl 8192]} (22. a3 $15) 22... Rfc8 $2 {[%emt 0:02:42]} (22... Qc3+ $19 23. Kf2 Qxa1 24. Rg4+ Kh8 25. Rh4+ Kg7 26. Rg4+ Kf6) 23. g4 {[%emt 0:04:04]} (23. Kf1 $11) 23... d5 {[%emt 0:17:16] Black is more active.} (23... Qg1+ $17 24. Rf1 Qe3+ 25. Qxe3 Nxe3) 24. Qe5 $15 {[%emt 0:02:44]} Qg1+ {[%emt 0:06:12]} 25. Kd2 {[%emt 0:01:34]} Qxh2+ {[%emt 0:00:20]} 26. Kd1 $1 {[%emt 0:00:00]} Ng7 $36 {[%emt 0:04:39][%mdl 2048] ...Rb4 is the strong threat. Black fights for an advantage.} ({But not} 26... Qg1+ $6 27. Kd2 Qg2+ 28. Kd1 $17) 27. g5 $2 {[%emt 0:01:39][%mdl 8192]} (27. Qf6 $1 $11 {and White has nothing to worry.}) 27... Rb4 $19 {[%emt 0:03:57] Dancing on a razor blade.} 28. Re4 {[%emt 0:02:38]} Qxe5 {[%emt 0:00:41]} 29. Rxe5 {[%emt 0:00:06]} Rcb8 {[%emt 0:00:35]} 30. Kd2 {[%emt 0:01:34]} Rh4 {[%emt 0:02:19]} 31. Rf1 {[%emt 0:01:59]} Rb6 {[%emt 0:00:13]} 32. g6 {[%emt 0:00:47]} (32. Rf6 $17 {is a better defense.}) 32... f5 {[%emt 0:00:22]} 33. Rf3 {[%emt 0:05:16]} Kf8 {[%emt 0:01:30]} 34. Be2 {[%emt 0:01:20]} Ke7 {[%emt 0:01:49]} 35. Ra3 {[%emt 0:00:21]} Rb7 {[%emt 0:00:24]} 36. Ra6 {[%emt 0:00:32]} Rhb4 {[%emt 0:02:03]} 37. Ke3 {[%emt 0:03:59]} (37. Re3 {was called for.}) 37... Rc7 {[%emt 0:01:32]} 38. Bd3 {[%emt 0:00:41]} Rb6 {[%emt 0:00:13]} 39. Rxb6 {[%emt 0:00:52]} axb6 {[%emt 0:00:02][%mdl 4096] Endgame KRB-KRN} 40. a4 {[%emt 0:00:15]} (40. Kd4 $142) 40... Kf6 {[%emt 0:01:36][%csl LRe5,LRg6]} 41. Kd4 {[%emt 0:31:44]} f4 {[%emt 0:31:20]} 42. c3 {[%emt 0:03:03]} Rc8 {[%emt 0:00:00]} ({Not} 42... Nf5+ 43. Bxf5 exf5 44. Rxd5 $17) 43. Re1 {[%emt 0:00:00]} Rd8 {[%emt 0:00:00][%cal Oe6e5]} 44. Bc2 {[%emt 0:00:00]} (44. Re5 $142) 44... e5+ {[%emt 0:00:00][%cal Be6e5,Be5e4][%mdl 32]} 45. Kd3 {[%emt 0:00:00]} e4+ {[%emt 0:00:00]} 46. Ke2 {[%emt 0:00:00]} Nf5 {[%emt 0:00:00]} 47. Kf2 {[%emt 0:00:00]} Kxg6 {[%emt 0:00:00]} 48. Rg1+ {[%emt 0:00:00]} Kf6 {[%emt 0:00:00] Strongly threatening ...Rh8.} 49. Rg4 {[%emt 0:00:00]} Ke5 {[%emt 0:00:00] Threatens to win with ...Rc8.} 50. Rg6 {[%emt 0:00:00]} Rd6 {[%emt 0:00:00]} 51. Rg5 {[%emt 0:00:00]} Rc6 {[%emt 0:00:00]} 52. Bd1 {[%emt 0:00:00]} f3 {[%emt 0:00:00][%cal Bf4f3,Bf3f2][%mdl 32]} 53. Rg8 {[%emt 0:00:00]} Rxc3 {[%emt 0:00:00] Black mates.} 54. Rb8 {[%emt 0:00:00]} Rd3 {[%emt 0:00:00]} 55. Ke1 {[%emt 0:00:00]} f2+ {[%emt 0:00:00]} 56. Ke2 {[%emt 0:00:00]} Rf3 {[%emt 0:00:00] Weighted Error Value: White=1.02/Black=0.36} 0-1